Cogmind - Beta 13 @@@ ROGUE MODE // 2024.04.07 @ 14:17:26 Player: Vox Result: Destroyed by L-31 Rogue with Katana Performance ------------- Evolutions (0) 0 Regions Visited (4) 800 Robots Destroyed (23) 115 Value Destroyed (570) 570 Prototype IDs (0) 0 Alien Tech Used (0) 0 Bonus (60) 60 TOTAL SCORE: 1545 Bonus ------- Follower Combat Kills 60 Cogmind --------- Core Integrity 0/250 Matter 285/300 Energy 160/160 System Corruption 0% Temperature Warning (314) Movement Core (300) Ox5 Location -9/Mines Parts ------- > --- POWER (1) -------- Light Nuclear Core > --- PROPULSION (2) --- (None) > --- UTILITY (2) ------ Medium Storage Unit > --- WEAPON (2) ------- Small Laser > --- INVENTORY (10) --- Aluminum Leg Aluminum Leg Heat Sink High-capacity Matter Pod (200) Experimental Sensor Array Grenade Launcher Rocket Launcher Peak State ------------ > --- POWER ------------ Light Nuclear Core > --- PROPULSION ------- Aluminum Leg Aluminum Leg > --- UTILITY ---------- Medium Storage Unit Hardened Light Armor Plating > --- WEAPON ----------- Light Assault Rifle Grenade Launcher > --- INVENTORY -------- Aluminum Leg Aluminum Leg Heat Sink High-capacity Matter Pod Experimental Sensor Array Small Laser Small Laser Small Laser Rocket Launcher [Rating: 11] Favorites ----------- Power Light Ion Engine Engine Light Ion Engine Power Core Light Nuclear Core Propulsion Aluminum Leg Treads Light Treads Leg Aluminum Leg Wheel Wheel Utility Structural Scanner Device Structural Scanner Storage Small Storage Unit Protection Hardened Light Armor Plating Weapon Light Assault Rifle Energy Gun Small Laser Ballistic Gun Light Assault Rifle Launcher Grenade Launcher Build | -11 -10 -10 -10 -9 ------- Run | Yrd Mat Min Exi Min Slots Evolved . | . . . . . Power . | . . . . . Propulsion . | . . . . . Utility . | . . . . . Weapon . | . . . . . Parts Attached 27 | 6 9 2 2 8 Power 5 | 1 2 1 . 1 Engine 4 | 1 2 1 . . Core 1 | . . . . 1 Reactor . | . . . . . Propulsion 7 | 2 3 1 . 1 Treads 2 | 2 . . . . Leg 4 | . 2 1 . 1 Wheel 1 | . 1 . . . Hover . | . . . . . Flight . | . . . . . Utility 6 | 1 1 . 2 2 Device 2 | . 1 . . 1 Storage 3 | 1 . . 2 . Processor . | . . . . . Hackware . | . . . . . Protection 1 | . . . . 1 Artifact . | . . . . . Weapon 9 | 2 3 . . 4 Energy Gun 7 | 2 1 . . 4 Energy Cannon . | . . . . . Ballistic Gun 1 | . 1 . . . Ballistic Cannon . | . . . . . Launcher 1 | . 1 . . . Special Weapon . | . . . . . Impact Weapon . | . . . . . Slashing Weapon . | . . . . . Piercing Weapon . | . . . . . Special Melee Weapon . | . . . . . Unidentified Prototypes . | . . . . . Parts Lost 8 | . 3 . . 5 Power 2 | . 1 . . 1 Propulsion 3 | . 2 . . 1 Utility 1 | . . . . 1 Weapon 2 | . . . . 2 Highest Loss Streak 3 | . 3 . . 3 To Critical Strikes . | . . . . . Average Slot Usage (%) 99 | . 98 100 100 97 Engine 10 | . 13 14 14 3 Core 3 | . . . . 10 Treads 4 | . 13 . . . Leg 23 | . 14 28 28 27 Device 12 | . 13 14 14 9 Storage 14 | . 14 14 14 14 Protection 1 | . . . . 3 Energy Gun 7 | . 19 . . 2 Ballistic Gun 11 | . 8 14 14 11 Launcher 9 | . . 14 14 13 Naked Turns . | . . . . . Heaviest Build 25 | 13 15 15 18 25 Greatest Support 40 | 40 40 20 20 20 Greatest Overweight (x) 1 | . 1 . . 1 Average Overweight (x) . | . . . . . Largest Inventory Capacity 10 | 8 8 8 10 10 Average Capacity 8 | 6 8 8 8 10 Most Carried 9 | 6 8 8 8 9 Average Carried 7 | 3 7 7 7 8 Final Capacity 10 | 8 8 8 10 10 Final Carried 8 | 6 8 7 8 7 Class Distribution -------------------- 100% | Mutant Dominant Class ---------------- Mutant | -10/Materials Mutant | -10/Mines Mutant | -10/Exiles Mutant | -9/Mines Resources | -11 -10 -10 -10 -9 ----------- Run | Yrd Mat Min Exi Min Matter Collected 678 | 223 178 5 184 88 Remotely . | . . . . . Salvage Created 779 | . 565 23 . 191 Parts 49 | . 37 5 . 7 Haulers Intercepted . | . . . . . Recyclers Shooed 1 | . . . . 1 Parts Field Recycled . | . . . . . Retrieved Matter . | . . . . . Parts Self-Destructed . | . . . . . Prevented . | . . . . . Kills | -11 -10 -10 -10 -9 ------- Run | Yrd Mat Min Exi Min Combat Hostiles Destroyed 19 | . 14 3 . 2 Guns 14 | . 12 . . 2 AOE 5 | . 2 3 . . Classes Destroyed 6 | . 5 . . 1 Worker 1 | . 1 . . . Builder 2 | . 2 . . . Recycler 1 | . . . . 1 Swarmer 6 | . 3 3 . . Grunt 11 | . 9 . . 2 Subdweller 2 | . 2 . . . Best Kill Streak 5 | . 5 3 . 1 Combat Bots Only 5 | . 5 3 . 1 Max Kills in Single Turn 2 | . 1 2 . 1 Gunslinging . | . . . . . Exploded 2 | . 1 2 . . Melee . | . . . . . Uniques/NPCs Destroyed . | . . . . . Combat | -11 -10 -10 -10 -9 -------- Run | Yrd Mat Min Exi Min Hostile Shots Fired 169 | . 90 8 . 71 Missed 43 | . 21 3 . 19 Damage Taken 1641 | . 803 37 . 801 Core 257 | . 74 8 . 175 Absorbed by Shields . | . . . . . Core Remaining (%) 100 | 100 . . . . Volleys Fired 110 | . 57 2 1 50 Largest 2 | . 2 1 1 2 Hottest 90 | . 90 30 20 90 Shots Fired 168 | . 111 2 1 54 Gun 163 | . 108 . 1 54 Cannon . | . . . . . Launcher 5 | . 3 2 . . Special . | . . . . . Kinetic 70 | . 31 . 1 38 Thermal 93 | . 77 . . 16 Explosive 5 | . 3 2 . . Electromagnetic . | . . . . . Robot Hit Streak 9 | . 9 . . 8 Robot Miss Streak 5 | . 5 . . 2 Penetration Max . | . . . . . Secondary Targets 1 | . 1 . . . Max Gunslinging Chain 1 | . 1 . . . Shots Hit Robots 104 | . 65 . . 39 Core Hits 47 | . 32 3 . 12 Critical Kills . | . . . . . Critical Parts Destroyed . | . . . . . Critical Strikes 1 | . 1 . . . Burn 1 | . 1 . . . Melee Attacks . | . . . . . Impact . | . . . . . Slashing . | . . . . . Piercing . | . . . . . Sneak Attacks . | . . . . . Combat Hostiles . | . . . . . Follow-up Attacks . | . . . . . Damage Inflicted 1273 | . 810 87 . 376 Guns 1080 | . 704 . . 376 Cannons . | . . . . . Explosions 193 | . 106 87 . . Melee . | . . . . . Ramming . | . . . . . Kinetic 365 | . 137 . . 228 Thermal 715 | . 567 . . 148 Explosive 193 | . 106 87 . . Electromagnetic . | . . . . . Impact . | . . . . . Slashing . | . . . . . Piercing . | . . . . . Highest Corruption . | . . . . . Average Corruption . | . . . . . Corruption Purged . | . . . . . Corruption Blocked . | . . . . . Overload Shots . | . . . . . Overflow Damage . | . . . . . Projectiles . | . . . . . Explosions . | . . . . . Melee . | . . . . . Knockbacks . | . . . . . Impact . | . . . . . Kinetic . | . . . . . Secondary . | . . . . . Self-Inflicted Damage . | . . . . . Shots . | . . . . . Rammed . | . . . . . Targets Rammed . | . . . . . Kicked . | . . . . . Crushed . | . . . . . Highest Temperature 483 | . 483 . . 314 Average Temperature 122 | . 125 . . 110 Received Heat Transfer 627 | . 351 . . 276 Effects 4 | . 2 . . 2 Energy Bleed 2 | . 1 . . 1 Interference 1 | . . . . 1 Matter Decay 1 | . 1 . . . Siege Activations . | . . . . . Robots Corrupted . | . . . . . Combat Hostiles . | . . . . . Parts Fried . | . . . . . Impact Corruptions . | . . . . . Robots Melted . | . . . . . Combat Hostiles . | . . . . . Parts Melted 4 | . 3 . . 1 Heat Transferred 1889 | . 1504 . . 385 Parts Sabotaged . | . . . . . Parts Stolen . | . . . . . Parts Stripped . | . . . . . Power Chain Reactions . | . . . . . Alert | -11 -10 -10 -10 -9 ------- Run | Yrd Mat Min Exi Min Peak Influence 340 | . 340 121 . 66 Initial 45 | . . 45 . . Average 85 | . 142 105 . 22 Maximum Alert Level 1 | . 1 . . . Low Security (%) 90 | 100 76 100 . 100 Level 1 9 | . 23 . . . Level 2 . | . . . . . Level 3 . | . . . . . Level 4 . | . . . . . Level 5 . | . . . . . High Security . | . . . . . Max Security . | . . . . . Squads Dispatched 3 | . 3 . . . Investigation 1 | . 1 . . . Extermination . | . . . . . Reinforcement 2 | . 2 . . . Assault . | . . . . . Garrison . | . . . . . Intercept . | . . . . . Searches Triggered . | . . . . . Construction Impeded . | . . . . . Haulers Reinforced . | . . . . . Active Scanning Responses . | . . . . . Cargo Convoy Interrupts . | . . . . . Stealth | -11 -10 -10 -10 -9 --------- Run | Yrd Mat Min Exi Min Distress Signals 1 | . 1 . . . Communications Jammed . | . . . . . Distress Signals . | . . . . . Times Spotted 44 | . 33 3 . 8 Peak Tracking Total 5 | . 5 3 . 3 Tactical Retreats 2 | . 2 . . . Traps | -11 -10 -10 -10 -9 ------- Run | Yrd Mat Min Exi Min Traps Triggered 1 | . 1 . . . Indirectly . | . . . . . Trap Hack Attempts . | . . . . . Triggered . | . . . . . Disarmed . | . . . . . Reprogrammed . | . . . . . Reused 1 | . . . . 1 Traps Extracted . | . . . . . Installed 3 | . . . . 3 Triggered 1 | . . . . 1 Machines | -11 -10 -10 -10 -9 ---------- Run | Yrd Mat Min Exi Min Machines Disabled . | . . . . . Max in Single Turn . | . . . . . Machines Repaired . | . . . . . Machines Dismantled . | . . . . . Machines Sabotaged . | . . . . . Overloaded Fab Kills . | . . . . . Hacking | -11 -10 -10 -10 -9 --------- Run | Yrd Mat Min Exi Min Machines Accessed 8 | . 4 . 4 . Terminals 4 | . 4 . . . Fabricators . | . . . . . Repair Stations . | . . . . . Recycling Units . | . . . . . Scanalyzers . | . . . . . Garrison Access . | . . . . . Total Hacks 51 | . 11 . 40 . Successful 46 | . 6 . 40 . Failed 5 | . 5 . . . Catastrophic 1 | . 1 . . . Database Lockouts . | . . . . . Manual 13 | . 12 . 1 . Terminals 11 | . 11 . . . Fabricators . | . . . . . Repair Stations . | . . . . . Recycling Units . | . . . . . Scanalyzers . | . . . . . Garrison Access . | . . . . . Terminal Hacks 42 | . 2 . 40 . Record 40 | . . . 40 . Branch Access Points 1 | . 1 . . . Terminal Index 1 | . 1 . . . Fabricator Hacks . | . . . . . Repair Station Hacks . | . . . . . Recycling Unit Hacks . | . . . . . Scanalyzer . | . . . . . Garrison Access Hacks . | . . . . . Unauthorized Hacks 4 | . 4 . . . Terminals 4 | . 4 . . . Botnet 4 | . 4 . . . Fabricators . | . . . . . Repair Stations . | . . . . . Recycling Units . | . . . . . Scanalyzers . | . . . . . Garrison Access . | . . . . . Data Cores Recovered . | . . . . . Used . | . . . . . Hacking Detections 3 | . 3 . . . Full Trace Events 1 | . 1 . . . Feedback Events . | . . . . . Feedback Blocked . | . . . . . Robot Schematics Acquired . | . . . . . Robots Built . | . . . . . Authchips . | . . . . . Time . | . . . . . Total Robot Build Rating . | . . . . . Part Schematics Acquired . | . . . . . Parts Built . | . . . . . Authchips . | . . . . . Time . | . . . . . Total Part Build Rating . | . . . . . Parts Repaired . | . . . . . Time . | . . . . . Parts Recycled . | . . . . . Recycled Matter . | . . . . . Retrieved Matter . | . . . . . Retrieved Components . | . . . . . Parts Scanalyzed . | . . . . . Part Schematics Acquired . | . . . . . Parts Damaged . | . . . . . Bothacking | -11 -10 -10 -10 -9 ------------ Run | Yrd Mat Min Exi Min Used RIF Installer . | . . . . . Robots Hacked . | . . . . . Non-combat . | . . . . . Combat . | . . . . . Robot Hacks Applied . | . . . . . Relay Couplers Released . | . . . . . Fabnet Peak Effective % . | . . . . . Robots Rewired . | . . . . . Allies Hacked . | . . . . . Hacks Repelled . | . . . . . Allies | -11 -10 -10 -10 -9 -------- Run | Yrd Mat Min Exi Min Total Allies 3 | . . . . 3 Largest Group 3 | . . . . 3 Highest-Rated Group 40 | . . . . 40 Highest-Rated Ally 16 | . . . . 16 Total Orders 8 | . . . . 8 STAY 4 | . . . . 4 ROAM 2 | . . . . 2 FOLLOW 2 | . . . . 2 Ally Attacks 26 | . . . . 26 Total Damage 272 | . . . . 272 Kills 2 | . . . . 2 Allies Corrupted . | . . . . . Allies Melted . | . . . . . Intel | -11 -10 -10 -10 -9 ------- Run | Yrd Mat Min Exi Min Robot Analysis Total . | . . . . . Derelict Logs Recovered 1 | . . . . 1 Drone Launches . | . . . . . Drone Recoveries . | . . . . . Exploration | -11 -10 -10 -10 -9 ------------- Run | Yrd Mat Min Exi Min Turns Passed 2584 | 64 834 348 574 764 Spaces Moved 1704 | 33 434 283 474 480 Core 2 | 2 . . . . Treads 206 | 31 175 . . . Legs 1494 | . 257 283 474 480 Wheels 2 | . 2 . . . Hover . | . . . . . Flight . | . . . . . Fastest Speed 50 | 50 95 120 120 120 Average Speed 128 | 153 136 120 120 133 Slowest Speed 190 | 160 160 120 120 190 Overloaded Moves . | . . . . . Propulsion Burnouts . | . . . . . Robots Hopped . | . . . . . Cave-ins Triggered . | . . . . . Exploration Rate (%) 64 | 4 76 68 91 85 Regions Visited 4 Branch Regions 3 Pre-discovered Areas 1 | . . . 1 . Known Exits Taken 1 | . 1 . . . Unknown Exits Taken 3 | 1 . 1 1 . Scrap Searched 2 | . . . . 2 Spaces Dug . | . . . . . Terrain Destroyed 23 | . 16 7 . . Melee . | . . . . . Projectile . | . . . . . AOE 23 | . 16 7 . . Terrain Rammed . | . . . . . Walls Destroyed . | . . . . . Machines Disabled . | . . . . . Actions | -11 -10 -10 -10 -9 --------- Run | Yrd Mat Min Exi Min Total 1944 | 44 574 290 479 557 Wait 74 | . 61 . . 13 Move 1700 | 32 433 282 473 480 Hop . | . . . . . Pick Up 18 | 6 9 1 1 1 Fast Attach 10 | 6 1 . . 3 Attach 6 | . 3 . . 3 Detach 1 | . . . . 1 Swap 11 | . 5 2 2 2 Drop 11 | . 5 3 2 1 Fire 110 | . 57 2 1 50 Melee . | . . . . . Ram . | . . . . . Kick . | . . . . . Crush . | . . . . . Escape Stasis . | . . . . . Rewire . | . . . . . Trap 3 | . . . . 3 Miscellaneous . | . . . . . Route ------- -11/Scrapyard -10/Materials (discovered 4 exits: [*Mat x2] / *Min x2) -10/Mines -10/Exiles -9/Mines (discovered 2 exits: *Mat x2) History --------- Turn | Location | Event 14 | -11/Scrapyard | Discovered new exit (range 16) 65 | -11/Scrapyard | Entered Materials 307 | -10/Materials | Build established: Mutant 498 | -10/Materials | Lost 3 parts (1p2n) 521 | -10/Materials | Discovered new exit (range 7) 669 | -10/Materials | Identified exit to Mines 719 | -10/Materials | Discovered new exit (range 14) 800 | -10/Materials | Derelicts attacked the area 899 | -10/Materials | Entered Mines 1177 | -10/Mines | Deemed a non-threat by the Exiles lab entrance 1177 | -10/Mines | Discovered new exit (range 5) 1216 | -10/Mines | Found a damaged Exp. Sensor Array with a note attached 1219 | -10/Mines | Found Prototype Device 1247 | -10/Mines | Entered Exiles 1278 | -10/Exiles | Met 8R-AWN 1300 | -10/Exiles | Met EX-HEX 1379 | -10/Exiles | Met EX-DEC 1403 | -10/Exiles | Visited The Gauntlet 1574 | -10/Exiles | Learned location of Zion (-6) 1613 | -10/Exiles | Met EX-BIN 1806 | -10/Exiles | Discovered new exit (range 14) 1821 | -10/Exiles | Entered Mines 1829 | -9/Mines | Discovered new exit (range 15) 1940 | -9/Mines | Received a Rocket Launcher from a helpful Derelict 1986 | -9/Mines | Core integrity fell below 50% 2124 | -9/Mines | Identified exit to Materials 2281 | -9/Mines | Assisted by bots powering up and referring to "LRC-V3" 2348 | -9/Mines | Found a hidden stash of uninstalled traps 2581 | -9/Mines | Core integrity fell below 20% 2585 | -9/Mines | Destroyed by L-31 Rogue with Katana Last Messages --------------- 02441_ Acquired 5 matter. 02442_ R-06 Scavenger collects Lgt. Assault Rifle. 02474_ Mercenary 2a destroyed. 02486_ G-34 Mercenary suffers critical hit (Burn). 02487_ Melted Aluminum Leg. 02487_ G-34 Mercenary overheating. 02488_ G-34 Mercenary destroyed. 02489_ Acquired 15 matter. 02490_ U-05 Engineer lays Concrete. 02567_ Aluminum Leg severed. 02572_ Med. Laser destroyed. 02575_ Overheating: System interference. 02575_ Sml. Laser temporarily disabled. 02575_ Hrd. Light Armor Plating severed. 02576_ Overheating: Energy bleed (-36). 02580_ Sml. Laser destroyed. 02582_ Sml. Laser severed. 02584_ Aluminum Leg destroyed. Map ----- +----------------------------------------------------+ | | | | | | | | | ?????????????????????????????????????????? | | ?????????????????????????????????????????? | | ?????????????????????????????????????????? | | ?????????????????????????????????????????? | | ?????????????????????????????????????????? | | ?????????????????????????????????????????? | | ?????????????????????????????????????????? | | ?????????????????????????????????????????? | | ??????????????????????####???????????????? | | ??????????????????????# ???????????????? | | ??????????????????????# u"???"??????????? | | ??????????????????????# """ """ ???????? | | ??????????????????????# """ """ ???????? | | ??????????????????????# ?????? | | #?????????????????????# """ """ ""?????? | | #?????????????????????# """ """ """????? | | #?????????????????????# """ """ """ #??? | | #????????????????###### #??? | | #????????????????# g #??? | | ##????????????????????# #??? | | ##????????????????????###lg########??????? | | ##????????????????????#?#@ #?????????????? | | ##???????????????????? ?#!!#?????????????? | | ##???????????????????? ?# #?????????????? | | ##???????????????????? ?# [#?????????????? | | ##???????????????????? ?# ##########????? | | #????????????????????? ?# #????? | | #????????????????????# ##[ ######## #????? | | #????????????????????# ##%r#??????# #????? | | #????????????????????# ## %#??????# #????? | | #?????????????####???# ## ######?# ##???? | | #####????????? #???# ##[ ### ##??? | | ######????????# #???# ##%= #??? | | ## ###????????# #???# ##* #??? | | # ##????????# #?### ## = #??? | | # ##???????## #?# !% #??? | | # ###?????## #?# ### ##??? | | # #####???# ### #?# #???? | | #####??# #?# #???? | | ## ###?## #?## #??? | | ### #### ####??# ### #?? | | #### ### ##?????# ##??# ?? | | ##### ## #?????# #????# ?? | | ### #????# ????? #?? | | #### ##### ##????# ?????? #??? | | #### ###?### ##?????## #?????# #??? | +----------------------------------------------------+ Best States ------------- Heat Dissipation 35 Energy Generation 14 Energy Capacity 250 Matter Stores 300 Matter Capacity 300 Sight Range 16 Terrain Scan Density 10 Armor Coverage 150 Evasion (%) 55 Recoil Reduction 2 Item Schematics ----------------- None Robot Schematics ------------------ None Fabricated ------------ Nothing Alien Tech Used ----------------- None Achievements -------------- None Challenges ------------ None Game ------ Seed SapperCoilBroadsword Manual? 0 Play Time 00:27:14 Cumulative 19.3 hours Start 2024.04.07 @ 13:50:33 End 2024.04.07 @ 14:17:26 Sessions 1 Manual Loads 0 Difficulty Rogue Special Mode None Game No. 20 Rogue 16 Adventurer 0 Explorer 4 Win Type - Total 0 Types 0/0/0/0/0/0/0/0/0 Lore% 19 Gallery% 24 Achievement% 23 Wizard Run 0 Options --------- Layout 1 ASCII 0 Keyboard 0 Movement Mouse Keybinds 0 Fullscreen 2 Font 32/SmallcapsGlow Map View 50x35 Zoom Use 0% Tactical HUD 1 Map Filters NONE Filters NONE Steam 1 RUN: 595e866c-c2bc-4c44-9e22-52e742fcf97f